fUST/lending_fUST_20240804
["ID","MTS","AMOUNT","RATE_DAILY","PERIOD"]
[334082638,1722750639481,-375.49306859,0.00015483,2]
[334082640,1722750639491,-6500.60825788,0.00015497,5]
[334082642,1722750639501,-330.0,0.00015497,2]
[334082644,1722750639511,-509.30265708,0.00015497,2]
[334082646,1722750639521,-500.0,0.00015497,2]
[334082648,1722750639530,-500.0,0.00015497,2]
[334082650,1722750639540,-500.0,0.00015497,2]
[334082652,1722750639549,-500.0,0.00015497,2]
[334082654,1722750639558,-150.0,0.00015497,2]
[334082656,1722750639568,-506.04521931,0.00015497,2]
[334082658,1722750639577,-500.0,0.00015497,2]
[334082660,1722750639586,-500.0,0.00015497,2]
[334082662,1722750639595,-496.67365437,0.00015497,2]
[334082663,1722750639605,-500.0,0.00015497,2]
[334082665,1722750639616,-500.0,0.00015497,2]
[334082667,1722750639626,-500.0,0.00015497,2]
[334082669,1722750639635,-500.0,0.00015497,2]
[334082672,1722750639647,-500.0,0.00015497,2]
[334082674,1722750639656,-500.0,0.00015497,2]
[334082676,1722750639665,-500.0,0.00015497,2]
[334082678,1722750639675,-293.62350609,0.00015497,2]
[334082706,1722750639938,-206.37649391,0.00015497,2]
[334082708,1722750639952,-500.0,0.00015497,2]
[334082711,1722750639965,-1346.5,0.00015497,2]
[334082713,1722750639978,-32.00152636,0.00015497,2]
[334082716,1722750639993,-473.15356987,0.00015497,2]
[334082718,1722750640005,-500.0,0.00015497,2]
[334082720,1722750640017,-500.0,0.00015497,2]
[334082722,1722750640029,-500.0,0.00015497,2]
[334082724,1722750640044,-500.0,0.00015497,2]
[334082727,1722750640056,-500.0,0.00015497,2]
[334082729,1722750640069,-500.0,0.00015497,2]
[334082731,1722750640080,-500.0,0.00015497,2]
[334082733,1722750640093,-500.0,0.00015497,2]
[334082735,1722750640104,-500.0,0.00015497,2]
[334082738,1722750640115,-500.0,0.00015497,2]
[334082740,1722750640127,-806.13,0.00015497,2]
[334082742,1722750640139,-500.0,0.00015497,2]
[334082744,1722750640150,-219.13601333,0.00015497,2]
[334082746,1722750640163,-500.0,0.00015498,2]
[334082749,1722750640175,-500.0,0.00015498,2]
[334082751,1722750640186,-500.0,0.00015498,2]
[334082753,1722750640197,-500.0,0.00015498,2]
[334082755,1722750640210,-500.0,0.00015498,2]
[334082758,1722750640223,-531.99872337,0.00015498,2]
[334082760,1722750640235,-500.0,0.00015498,2]
[334082762,1722750640249,-500.0,0.00015498,2]
[334082765,1722750640261,-500.0,0.00015498,2]
[334082767,1722750640275,-500.0,0.00015498,2]
[334082769,1722750640285,-500.0,0.00015498,2]
[334082771,1722750640296,-500.0,0.00015498,2]
[334082773,1722750640306,-500.0,0.00015498,2]
[334082776,1722750640317,-500.0,0.00015498,2]
[334082778,1722750640328,-500.0,0.00015498,2]
[334082780,1722750640340,-500.0,0.00015498,2]
[334082782,1722750640352,-500.0,0.00015498,2]
[334082785,1722750640365,-500.0,0.00015498,2]
[334082787,1722750640376,-500.0,0.00015498,2]
[334082789,1722750640386,-500.0,0.00015498,2]
[334082791,1722750640400,-500.0,0.00015498,2]
[334082794,1722750640412,-500.0,0.00015498,2]
[334082796,1722750640424,-500.0,0.00015498,2]
[334082798,1722750640436,-500.0,0.00015498,2]
[334082800,1722750640447,-500.0,0.00015498,2]
[334082803,1722750640459,-500.0,0.00015498,2]
[334082805,1722750640469,-500.0,0.00015498,2]
[334082807,1722750640479,-500.0,0.00015498,2]
[334082809,1722750640490,-500.0,0.00015498,2]
[334082811,1722750640500,-500.0,0.00015498,2]
[334082813,1722750640512,-500.0,0.00015498,2]
[334082815,1722750640523,-500.0,0.00015498,2]
[334082818,1722750640535,-500.0,0.00015498,2]
[334082820,1722750640549,-500.0,0.00015498,2]
[334082822,1722750640561,-500.0,0.00015498,2]
[334082824,1722750640573,-500.0,0.00015498,2]
[334082827,1722750640584,-500.0,0.00015498,2]
[334082829,1722750640595,-500.0,0.00015498,2]
[334082831,1722750640607,-500.0,0.00015498,2]
[334082834,1722750640619,-500.0,0.00015498,2]
[334082836,1722750640630,-500.0,0.00015498,2]
[334082838,1722750640641,-500.0,0.00015498,2]
[334082840,1722750640653,-500.0,0.00015498,2]
[334082842,1722750640664,-500.0,0.00015498,2]
[334082844,1722750640675,-151.0,0.00015498,2]
[334082847,1722750640686,-500.0,0.00015498,2]
[334082849,1722750640698,-500.0,0.00015498,2]
[334082851,1722750640709,-500.0,0.00015498,2]
[334082853,1722750640721,-500.0,0.00015498,2]
[334082855,1722750640732,-500.0,0.00015498,2]
[334082857,1722750640743,-500.0,0.00015498,2]
[334082860,1722750640755,-500.0,0.00015498,2]
[334082862,1722750640765,-500.0,0.00015498,2]
[334082864,1722750640776,-500.0,0.00015498,2]
[334082866,1722750640787,-500.0,0.00015498,2]
[334082868,1722750640798,-507.80898118,0.00015498,2]
[334082870,1722750640808,-500.0,0.00015498,2]
[334082872,1722750640819,-500.0,0.00015498,2]
[334082874,1722750640830,-505.39745513,0.00015498,2]
[334082876,1722750640840,-500.0,0.00015498,2]
[334082878,1722750640851,-500.0,0.00015498,2]
[334082880,1722750640862,-500.0,0.00015498,2]
[334082882,1722750640873,-500.0,0.00015498,2]
[334082885,1722750640883,-500.0,0.00015498,2]
[334082887,1722750640894,-500.0,0.00015498,2]
[334082889,1722750640905,-500.0,0.00015498,2]
[334082891,1722750640917,-500.0,0.00015498,2]
[334082893,1722750640927,-500.0,0.00015498,2]
[334082895,1722750640938,-500.0,0.00015498,2]
[334082897,1722750640950,-500.0,0.00015498,2]
[334082899,1722750640961,-500.0,0.00015498,2]
[334082902,1722750640972,-500.0,0.00015498,2]
[334082904,1722750640983,-438.80008264,0.00015498,2]
[334082906,1722750640995,-500.0,0.00015498,2]
[334082908,1722750641005,-510.79640168,0.00015498,2]
[334082910,1722750641017,-500.0,0.00015498,2]
[334082913,1722750641028,-500.0,0.00015498,2]
[334082915,1722750641043,-500.0,0.00015498,2]
[334082930,1722750641179,-151.0,0.00015498,2]
[334082932,1722750641190,-151.0,0.00015498,2]
[334082934,1722750641199,-500.0,0.00015498,2]
[334082936,1722750641209,-1781.95,0.00015498,2]
[334082938,1722750641218,-500.0,0.00015498,2]
[334082940,1722750641228,-500.0,0.00015498,2]
[334082942,1722750641237,-500.0,0.00015498,2]
[334082944,1722750641247,-500.0,0.00015498,2]
[334082946,1722750641256,-500.0,0.00015498,2]
[334082948,1722750641266,-500.0,0.00015498,2]
[334082950,1722750641276,-500.0,0.00015498,2]
[334082952,1722750641286,-500.0,0.00015498,2]
[334082954,1722750641296,-681.95,0.00015498,2]
[334082956,1722750641307,-500.0,0.00015498,2]
[334082959,1722750641318,-500.0,0.00015498,2]
[334082961,1722750641328,-500.0,0.00015498,2]
[334082963,1722750641337,-500.0,0.00015498,2]
[334082965,1722750641346,-500.0,0.00015498,2]
[334082967,1722750641357,-500.0,0.00015498,2]
[334082969,1722750641367,-151.0,0.00015498,2]
[334082971,1722750641376,-500.0,0.00015498,2]
[334082973,1722750641385,-500.0,0.00015498,2]
[334082975,1722750641396,-500.0,0.00015498,2]
[334082977,1722750641406,-500.0,0.00015498,2]
[334082979,1722750641415,-500.0,0.00015498,2]
[334082981,1722750641425,-500.0,0.00015498,2]
[334082983,1722750641434,-500.0,0.00015498,2]
[334082985,1722750641444,-500.0,0.00015498,2]
[334082987,1722750641454,-500.0,0.00015498,2]
[334082989,1722750641464,-500.0,0.00015498,2]
[334082991,1722750641473,-500.0,0.00015498,2]
[334082993,1722750641482,-229.247811,0.00015498,2]
[334082995,1722750641492,-500.0,0.00015498,2]
[334082997,1722750641501,-500.0,0.00015498,2]
[334082999,1722750641510,-500.0,0.00015498,2]
[334083001,1722750641520,-500.0,0.00015498,2]
[334083003,1722750641530,-500.0,0.00015498,2]
[334083005,1722750641539,-78.51162844,0.00015498,2]
[334083031,1722750641776,-421.48837156,0.00015498,2]
[334083033,1722750641785,-500.0,0.00015498,2]
[334083035,1722750641795,-500.0,0.00015498,2]
[334083037,1722750641804,-500.0,0.00015498,2]
[334083039,1722750641813,-500.0,0.00015498,2]
[334083041,1722750641822,-151.0,0.00015498,2]
[334083043,1722750641832,-151.0,0.00015498,2]
[334083045,1722750641841,-500.0,0.00015498,2]
[334083047,1722750641850,-151.403921,0.00015498,2]
[334083049,1722750641859,-500.0,0.00015498,2]
[334083051,1722750641868,-203.090868,0.00015498,2]
[334083053,1722750641878,-500.0,0.00015498,2]
[334083055,1722750641887,-500.0,0.00015498,2]
[334083057,1722750641897,-358.54168481,0.00015498,2]
[334083059,1722750641906,-500.0,0.00015498,2]
[334083061,1722750641916,-500.0,0.00015498,2]
[334083063,1722750641925,-500.0,0.00015498,2]
[334083065,1722750641936,-272.17128263,0.00015498,2]
[334083067,1722750641948,-227.82871737,0.00015498,2]
[334083069,1722750641958,-510.59319016,0.00015498,2]
[334083071,1722750641967,-194.71924086,0.00015498,2]
[334083073,1722750641977,-735.85,0.00015498,2]
[334083075,1722750641986,-296.97884,0.00015498,2]
[334083077,1722750641995,-296.97884,0.00015498,2]
[334083079,1722750642005,-296.97884,0.00015498,2]
[334083081,1722750642014,-296.97884,0.00015498,2]
[334083083,1722750642023,-1191.71,0.00015498,2]
[334083085,1722750642032,-151.0,0.00015498,2]
[334083087,1722750642046,-151.0,0.00015498,2]
[334083089,1722750642056,-151.00000098,0.00015499,2]
[334083090,1722750642065,-151.0,0.00015499,2]
[334083092,1722750642074,-151.0,0.00015499,2]
[334083094,1722750642085,-177.415216,0.00015499,2]
[334083096,1722750642094,-151.0,0.00015499,2]
[334083098,1722750642103,-151.0,0.00015499,2]
[334083100,1722750642114,-296.97884,0.00015499,2]
[334083102,1722750642124,-296.97884,0.00015499,2]
[334083104,1722750642133,-24200.95060315,0.00015499,2]
[334083106,1722750642146,-22089.83406735,0.00015499,2]
[334083108,1722750642155,-150.112233,0.000155,2]
[334083110,1722750642166,-500.0,0.00015507,2]
[334083112,1722750642175,-250.049559,0.00015508,2]
[334083114,1722750642184,-240.0,0.00015508,2]
[334083116,1722750642194,-151.0,0.00015508,2]
[334083118,1722750642203,-151.0,0.00015508,2]
[334083120,1722750642213,-500.0,0.00015508,2]
[334083122,1722750642222,-151.0,0.00015508,2]
[334083124,1722750642231,-500.0,0.00015508,2]
[334083126,1722750642241,-500.0,0.00015508,2]
[334083128,1722750642251,-500.0,0.00015508,2]
[334083130,1722750642262,-151.0,0.00015508,2]
[334083132,1722750642271,-151.0,0.00015508,2]
[334083134,1722750642280,-500.0,0.00015509,2]
[334083136,1722750642289,-503.4633429,0.00015509,2]
[334083138,1722750642298,-500.0,0.00015509,2]
[334083140,1722750642307,-500.0,0.00015509,2]
[334083142,1722750642317,-462.01777427,0.00015509,2]
[334083144,1722750642326,-505.35266872,0.00015509,2]
[334083146,1722750642335,-500.0,0.00015509,2]
[334083148,1722750642344,-500.0,0.00015509,2]
[334083150,1722750642353,-500.0,0.00015509,2]
[334083152,1722750642363,-500.0,0.00015509,2]
[334083154,1722750642373,-307.2259258,0.00015509,2]
[334083156,1722750642382,-500.0,0.00015509,2]
[334083158,1722750642392,-151.0,0.00015509,2]
[334083160,1722750642401,-151.0,0.00015509,2]
[334083162,1722750642410,-151.0,0.00015509,2]
[334083164,1722750642420,-151.0,0.00015509,2]
[334083166,1722750642430,-500.0,0.00015509,2]
[334083168,1722750642441,-212.80102575,0.00015509,2]
[334083171,1722750642459,-287.19897425,0.00015509,2]
[334083173,1722750642468,-500.0,0.00015509,2]
[334083175,1722750642478,-505.98192642,0.00015509,2]
[334083177,1722750642487,-500.0,0.00015509,2]
[334083179,1722750642497,-500.0,0.00015509,2]
[334083181,1722750642508,-500.0,0.00015509,2]
[334083183,1722750642519,-461.71731392,0.00015509,2]
[334083271,1722750643344,-38.28268608,0.00015509,2]
[334083272,1722750643354,-500.0,0.00015509,2]
[334083273,1722750643364,-500.0,0.00015509,2]
[334083274,1722750643376,-502.17344159,0.00015509,2]
[334083275,1722750643387,-129.90217473,0.00015509,2]
[334083277,1722750643402,-370.09782527,0.00015509,2]
[334083278,1722750643411,-500.0,0.00015509,2]
[334083280,1722750643421,-245.32347821,0.00015509,2]
[334083282,1722750643432,-254.67652179,0.00015509,2]
[334083284,1722750643442,-500.0,0.00015509,2]
[334083286,1722750643452,-500.0,0.00015509,2]
[334083288,1722750643460,-500.0,0.00015509,2]
[334083290,1722750643470,-503.52167179,0.00015509,2]
[334083292,1722750643479,-500.0,0.00015509,2]
[334083294,1722750643488,-500.0,0.00015509,2]
[334083296,1722750643498,-500.0,0.00015509,2]
[334083298,1722750643508,-500.0,0.00015509,2]
[334083300,1722750643517,-500.0,0.00015509,2]
[334083302,1722750643526,-500.0,0.00015509,2]
[334083304,1722750643535,-500.0,0.00015509,2]
[334083306,1722750643544,-500.0,0.00015509,2]
[334083308,1722750643554,-500.0,0.00015509,2]
[334083310,1722750643563,-500.0,0.00015509,2]
[334083312,1722750643573,-608.11258277,0.00015509,2]
[334083314,1722750643582,-500.0,0.00015509,2]
[334083316,1722750643592,-500.0,0.00015509,2]
[334083318,1722750643602,-513.71611328,0.00015509,2]
[334083320,1722750643613,-41.77311037,0.00015509,2]
[334083322,1722750643625,-458.22688963,0.00015509,2]
[334083324,1722750643635,-502.19294622,0.00015509,2]
[334083326,1722750643645,-500.0,0.00015509,2]
[334083328,1722750643655,-485.2509785,0.00015509,2]
[334083331,1722750643665,-552.80140385,0.00015509,2]
[334083333,1722750643675,-500.0,0.00015509,2]
[334083335,1722750643686,-500.0,0.00015509,2]
[334083337,1722750643697,-500.0,0.00015509,2]
[334083339,1722750643708,-500.0,0.00015509,2]
[334083341,1722750643717,-631.25677739,0.00015509,2]
[334083343,1722750643729,-500.0,0.00015509,2]
[334083345,1722750643739,-500.0,0.00015509,2]
[334083347,1722750643752,-500.0,0.00015509,2]
[334083349,1722750643761,-500.0,0.00015509,2]
[334083351,1722750643771,-505.82684069,0.00015509,2]
[334083353,1722750643780,-487.48311764,0.00015509,2]
[334083355,1722750643789,-500.0,0.00015509,2]
[334083357,1722750643798,-500.0,0.00015509,2]
[334083358,1722750643807,-500.0,0.00015509,2]
[334083360,1722750643819,-500.0,0.00015509,2]
[334083362,1722750643828,-500.0,0.00015509,2]
[334083364,1722750643838,-500.0,0.00015509,2]
[334083366,1722750643847,-500.0,0.00015509,2]
[334083368,1722750643856,-500.0,0.00015509,2]
[334083370,1722750643866,-500.0,0.00015509,2]
[334083372,1722750643875,-508.76523198,0.00015509,2]
[334083374,1722750643884,-500.0,0.00015509,2]
[334083376,1722750643893,-500.0,0.00015509,2]
[334083378,1722750643902,-500.0,0.00015509,2]
[334083380,1722750643912,-500.0,0.00015509,2]
[334083382,1722750643921,-500.0,0.00015509,2]
[334083383,1722750643931,-151.0,0.00015509,2]
[334083385,1722750643940,-500.0,0.00015509,2]
[334083387,1722750643950,-138.04215318,0.00015509,2]
[334083467,1722750650148,423.05675416,0.00013489,2]
[334083468,1722750653167,897.15,0.00010959,2]
[334083470,1722750724843,11262.92755686,0.00010959,2]
[334083471,1722750787763,-171.88805578,9.999e-05,2]
[334083472,1722750797657,-289.34388559,0.0001,2]
[334083473,1722750797692,-300.0,0.00010958,2]
[334083474,1722750797726,-5025.44500235,0.00010959,2]
[334083475,1722750797762,-219.51063317,0.00010959,2]
[334083476,1722750797796,-234.90780722,0.00010959,2]
[334083477,1722750797832,-3293.92351773,0.00010959,2]
[334083478,1722750797866,-1344.87454527,0.00010959,2]
[334083479,1722750877019,-289.34388559,0.00010959,2]
[334083480,1722750877064,-936.97146555,0.00010959,2]
[334083481,1722750896856,-154.72922386,9.999e-05,2]
[334083482,1722750903992,-231.41053985,9.999e-05,2]
[334083483,1722750904029,-179.89584147,0.00010959,2]
[334083484,1722750904066,-1649.26640918,0.00010959,2]
[334083485,1722750913237,-231.41053985,0.00010959,2]
[334083486,1722750913271,-9849.40808006,0.00010959,2]
[334083487,1722751119285,-154.72922386,9.999e-05,2]
[334083488,1722751119321,-182.0827797,9.999e-05,2]
[334083489,1722751119356,-278.37621804,9.999e-05,2]
[334083490,1722751119390,-155.37831884,9.999e-05,2]
[334083491,1722751119427,-209.18351946,9.999e-05,2]
[334083492,1722751127075,-1880.67694903,0.00010959,2]
[334083493,1722751208308,528.75161332,9.999e-05,2]
[334083494,1722751210458,154.72922386,9.999e-05,2]
[334083495,1722751213040,209.07554501,9.999e-05,2]
[334083496,1722751254895,16276.9865334,9.999e-05,2]
[334083497,1722751262278,854.19086417,9.999e-05,2]
[334083498,1722751263270,1976.26622024,9.999e-05,2]
[334083499,1722751263337,-3170.90958449,9.999e-05,2]
[334083500,1722751271863,155.25915657,9.999e-05,2]
[334083501,1722751299648,559.09003319,9.999e-05,2]
[334083502,1722751301735,191.41077215,9.999e-05,2]
[334083503,1722751312843,168.08491565,9.999e-05,2]
[334083504,1722751315103,155.03217564,9.999e-05,2]
[334083505,1722751316510,290.68258833,9.999e-05,2]
[334083506,1722751317445,154.72922386,9.999e-05,2]
[334083507,1722751335812,183.89925689,9.999e-05,2]
[334083509,1722751341982,212.63418593,9.999e-05,2]
[334083510,1722751342095,194.37666475,9.999e-05,2]
[334083511,1722751369956,156.10694161,9.999e-05,2]
[334083512,1722751373755,197.32771972,9.999e-05,2]
[334083513,1722751385678,273.37336231,9.9e-05,2]
[334083515,1722751402667,330.64324231,9.999e-05,2]
[334083517,1722751412702,155.86307962,9.999e-05,2]
[334083518,1722751419422,154.72922386,9.999e-05,2]
[334083519,1722751420775,156.25126951,9.999e-05,2]
[334083789,1722751441770,523.06806918,9.999e-05,2]
[334083790,1722751468758,155.36261284,9.999e-05,2]
[334083791,1722751479300,196.85950782,9.999e-05,2]
[334083792,1722751485722,165.62828221,9.999e-05,2]
[334083793,1722751514308,154.72922386,9.999e-05,2]
[334083794,1722751521072,205.68656318,9.999e-05,2]
[334083795,1722751558135,-1330.05421038,0.00010959,2]
[334083796,1722751605569,155.63874855,9.999e-05,2]
[334083797,1722751607310,155.60923042,9.999e-05,2]
[334083798,1722751636109,-550.62273865,0.00010959,2]
[334083799,1722751636133,-155.65643087,0.00010959,2]
[334083800,1722751636155,-164.63537011,0.0001212,2]
[334083801,1722751636187,-1808.71304858,0.0001212,2]
[334083802,1722751636208,-831.78277689,0.00013283,2]
[334083803,1722751642120,-1438.8564239,0.00013283,2]
[334083804,1722751648101,-288.63667318,0.00013283,2]
[334083806,1722751745308,155.04186492,9.999e-05,2]
[334083807,1722751756278,-1880.67694903,0.00013283,2]
[334083808,1722751756327,-1004.25762999,0.00013283,2]
[334083809,1722751762101,-1989.2068561,0.00013926,2]
[334083867,1722751832633,-32.07074146,0.00014051,2]
[334083874,1722751838599,-294.74819654,0.00014051,2]
[334083875,1722751838609,-191.468216,0.00014247,2]
[334083876,1722751838620,-560.297347,0.00014247,2]
[334083877,1722751838629,-154.89029997,0.0001469,2]
[334083878,1722751838638,-154.82996095,0.0001469,2]
[334083879,1722751838647,-407.7905431,0.00014959,2]
[334083880,1722751838656,-249.62821741,0.00015,2]
[334083881,1722751838666,-1108.76834352,0.00015,2]
[334083882,1722751838675,-887.43653281,0.00015075,2]
[334083884,1722751838811,-46.35077809,0.00015075,2]
[334083886,1722751838823,-300.0,0.00015169,2]
[334083887,1722751838833,-153.0,0.0001517,2]
[334083888,1722751838843,-306.0,0.0001517,2]
[334083889,1722751838855,-153.0,0.0001517,2]
[334083890,1722751838865,-153.0,0.0001517,2]
[334083891,1722751838874,-206.960494,0.0001517,2]
[334083892,1722751838883,-153.0,0.0001517,2]
[334083893,1722751838893,-294.2310959,0.0001517,2]
[334083894,1722751838903,-153.0,0.0001517,2]
[334083895,1722751838912,-206.960494,0.0001517,2]
[334083896,1722751838921,-154.2349623,0.0001517,2]
[334083897,1722751838931,-206.9847165,0.0001517,2]
[334083898,1722751838940,-153.0,0.0001517,2]
[334083899,1722751838949,-209.0920745,0.0001517,2]
[334083900,1722751838959,-206.960494,0.0001517,2]
[334083901,1722751838968,-206.960494,0.0001517,2]
[334083902,1722751838977,-294.2310959,0.0001517,2]
[334083903,1722751838988,-413.8686665,0.0001517,2]
[334083904,1722751838999,-206.960494,0.0001517,2]
[334083905,1722751839010,-294.2310959,0.0001517,2]
[334083906,1722751839020,-155.6605434,0.0001517,2]
[334083907,1722751839032,-294.2310959,0.0001517,2]
[334083908,1722751839044,-153.0,0.0001517,2]
[334083909,1722751839053,-294.2310959,0.0001517,2]
[334083910,1722751839063,-153.0,0.0001517,2]
[334083911,1722751839073,-153.0,0.0001517,2]
[334083912,1722751839082,-294.2310959,0.0001517,2]
[334083913,1722751839091,-153.0,0.0001517,2]
[334083914,1722751839103,-3977.64560196,0.00015386,2]
[334083915,1722751839114,-1763.92928796,0.00015396,2]
[334083916,1722751839124,-1763.92928793,0.00015465,2]
[334083917,1722751839133,-200.0,0.00015473,2]
[334083918,1722751839143,-500.0,0.00015485,2]
[334083919,1722751839154,-506.3132492,0.00015485,2]
[334083920,1722751839165,-1677.38,0.00015485,2]
[334083921,1722751839175,-500.0,0.00015485,2]
[334083922,1722751839184,-500.0,0.00015485,2]
[334083923,1722751839194,-500.0,0.00015485,2]
[334083925,1722751839203,-500.0,0.00015485,2]
[334083927,1722751839213,-500.0,0.00015485,2]
[334083929,1722751839222,-500.0,0.00015485,2]
[334083931,1722751839232,-189.23570072,0.00015485,2]
[334083933,1722751839242,-500.0,0.00015485,2]
[334083935,1722751839251,-500.0,0.00015485,2]
[334083937,1722751839260,-500.0,0.00015485,2]
[334083939,1722751839270,-500.0,0.00015485,2]
[334083941,1722751839279,-500.0,0.00015485,2]
[334083943,1722751839288,-500.0,0.00015485,2]
[334083945,1722751839300,-500.0,0.00015485,2]
[334083947,1722751839319,-500.0,0.00015485,2]
[334083948,1722751839331,-500.0,0.00015485,2]
[334083950,1722751839340,-500.0,0.00015485,2]
[334083952,1722751839350,-500.0,0.00015485,2]
[334083954,1722751839367,-500.0,0.00015485,2]
[334083956,1722751839376,-500.0,0.00015485,2]
[334083958,1722751839385,-500.0,0.00015485,2]
[334083960,1722751839395,-500.0,0.00015485,2]
[334083962,1722751839404,-500.0,0.00015485,2]
[334083964,1722751839414,-500.0,0.00015485,2]
[334083966,1722751839423,-227.00377165,0.00015485,2]
[334083968,1722751839433,-500.0,0.00015485,2]
[334083970,1722751839446,-500.0,0.00015485,2]
[334083972,1722751839455,-500.0,0.00015485,2]
[334083974,1722751839465,-500.0,0.00015485,2]
[334083976,1722751839474,-500.0,0.00015485,2]
[334083978,1722751839484,-500.0,0.00015485,2]
[334083980,1722751839495,-500.0,0.00015485,2]
[334083982,1722751839504,-500.0,0.00015485,2]
[334083985,1722751839518,-500.0,0.00015485,2]
[334083987,1722751839530,-500.0,0.00015485,2]
[334083989,1722751839540,-500.0,0.00015485,2]
[334083991,1722751839553,-22477.6066654,0.00015486,2]
[334083993,1722751839564,-500.0,0.00015486,2]
[334083996,1722751839575,-500.0,0.00015486,2]
[334083998,1722751839587,-500.0,0.00015486,2]
[334084000,1722751839597,-500.0,0.00015486,2]
[334084002,1722751839609,-500.0,0.00015486,2]
[334084004,1722751839619,-500.0,0.00015486,2]
[334084018,1722751839739,-500.0,0.00015486,2]
[334084021,1722751839752,-539.97,0.00015486,2]
[334084023,1722751839762,-500.0,0.00015486,2]
[334084025,1722751839771,-500.0,0.00015486,2]
[334084027,1722751839782,-500.0,0.00015486,2]
[334084029,1722751839791,-500.0,0.00015486,2]
[334084031,1722751839800,-500.0,0.00015486,2]
[334084033,1722751839810,-500.0,0.00015486,2]
[334084035,1722751839819,-500.0,0.00015486,2]
[334084037,1722751839828,-1930.53,0.00015486,2]
[334084039,1722751839837,-782.91,0.00015486,2]
[334084041,1722751839846,-500.0,0.00015486,2]
[334084043,1722751839856,-500.0,0.00015486,2]
[334084045,1722751839866,-500.0,0.00015486,2]
[334084047,1722751839876,-511.41415857,0.00015486,2]
[334084049,1722751839888,-500.0,0.00015486,2]
[334084051,1722751839899,-500.0,0.00015486,2]
[334084054,1722751839909,-500.0,0.00015486,2]
[334084056,1722751839920,-500.0,0.00015486,2]
[334084058,1722751839931,-500.0,0.00015486,2]
[334084060,1722751839944,-500.0,0.00015486,2]
[334084062,1722751839954,-512.1125151,0.00015486,2]
[334084065,1722751839964,-500.0,0.00015486,2]
[334084067,1722751839975,-500.0,0.00015486,2]
[334084069,1722751839985,-500.0,0.00015486,2]
[334084071,1722751839995,-500.0,0.00015486,2]
[334084073,1722751840005,-500.0,0.00015486,2]
[334084075,1722751840015,-770.92,0.00015486,2]
[334084077,1722751840025,-500.0,0.00015486,2]
[334084079,1722751840034,-500.0,0.00015486,2]
[334084081,1722751840044,-894.12,0.00015486,2]
[334084083,1722751840053,-44955.2133309,0.00015487,2]
[334084085,1722751840062,-151.0,0.00015487,2]
[334084087,1722751840071,-539.97,0.00015489,2]
[334084089,1722751840081,-151.0,0.00015494,2]
[334084091,1722751840090,-151.0,0.00015494,2]
[334084093,1722751840099,-151.0,0.00015494,2]
[334084095,1722751840109,-500.0,0.00015496,2]
[334084097,1722751840118,-500.0,0.00015496,2]
[334084099,1722751840129,-500.0,0.00015496,2]
[334084101,1722751840138,-500.0,0.00015496,2]
[334084103,1722751840149,-500.0,0.00015496,2]
[334084105,1722751840159,-500.0,0.00015496,2]
[334084107,1722751840168,-551.44747579,0.00015496,2]
[334084109,1722751840177,-500.0,0.00015496,2]
[334084112,1722751840191,-500.0,0.00015496,2]
[334084114,1722751840202,-500.0,0.00015496,2]
[334084116,1722751840211,-500.0,0.00015496,2]